bitfinex-derivatives/quotes_ETHF0:USTF0_20250804
["timestamp","ask_amount","ask_price","bid_price","bid_amount"]
[1754321327499,20.9059,3648.2,3648.1,1.80913]
[1754321327800,20.9059,3648.2,3648.1,1.37473]
[1754321328700,20.9059,3648.2,3648.1,2.20053]
[1754321329299,20.9059,3648.2,3648.1,2.57803]
[1754321329899,4.0223,3648.7,3648.6,2.0299]
[1754321330099,0.2515,3648.2,3648.1,1.218]
[1754321330306,2.0719,3648.2,3648.1,1.6524]
[1754321330500,20.9049,3648.2,3648.1,1.6524]
[1754321330804,20.9049,3648.2,3648.1,2.20054]
[1754321331405,20.9049,3648.2,3648.1,2.57804]
[1754321333900,20.9049,3648.2,3648.1,2.20054]
[1754321334105,20.9049,3648.2,3648.1,1.37474]
[1754321334801,20.9049,3648.2,3648.1,1.80914]
[1754321335006,20.9049,3648.2,3648.1,1.11734]
[1754321335608,20.9049,3648.2,3648.1,1.37474]
[1754321335904,20.9049,3648.2,3648.1,2.20054]
[1754321336307,20.9049,3648.2,3648.1,2.57804]
[1754321336906,20.9049,3648.2,3648.1,1.54244]
[1754321337106,20.9049,3648.2,3648.1,2.57804]
[1754321339507,20.5036,3648.2,3648.1,2.57804]
[1754321339702,20.9019,3648.2,3648.1,2.57804]
[1754321341016,2.0719,3648.6,3648.5,2.57798]
[1754321341305,2.22139127,3648.6,3648.5,2.57798]
[1754321341513,21.05039127,3648.6,3648.5,2.57798]
[1754321342114,21.05039127,3648.6,3648.5,2.0299]
[1754321342407,1.2075,3648.5,3648.4,4.95999]
[1754321342716,18.829,3648.6,3648.5,1.2041]
[1754321342901,2.15683,3648.9,3648.8,1.37464]
[1754321343105,22.30208966,3648.9,3648.8,2.57794]
[1754321343306,0.1495047,3648.9,3648.8,2.57794]
[1754321343503,21.0494047,3649.1,3649.0,2.57791]
[1754321343709,20.8999,3649.1,3649.0,2.57791]
[1754321344612,20.8999,3649.1,3649.0,1.6524]
[1754321344813,20.8999,3649.1,3649.0,0.8266]
[1754321345009,1.36251,3649.0,3648.9,0.54802]
[1754321345210,2.0719,3649.0,3648.9,1.10792]
[1754321345407,2.0719,3649.0,3648.9,1.37462]
[1754321346705,2.0719,3649.0,3648.9,2.20042]
[1754321346906,3.2078,3649.6,3648.9,2.20042]
[1754321346907,2.0719,3649.6,3649.5,1.37453]
[1754321347110,2.0719,3649.6,3649.5,2.57783]
[1754321347315,20.8969,3649.6,3649.5,2.57783]
[1754321348017,20.8969,3649.6,3649.5,2.0299]
[1754321348519,20.8969,3649.6,3649.5,1.6524]
[1754321348711,2.0719,3649.6,3649.5,1.6524]
[1754321348912,20.8959,3649.6,3649.5,1.6524]
[1754321349413,20.8959,3649.6,3649.5,2.0299]
[1754321352216,0.4671,3649.9,3649.5,2.00471]
[1754321352411,0.9111,3649.9,3649.8,2.0263]
[1754321352610,20.9142,3649.9,3649.8,2.0263]
[1754321353419,20.042,3649.9,3649.8,2.0263]
[1754321353811,20.4471,3649.9,3649.8,2.0263]
[1754321354007,20.9142,3649.9,3649.8,2.0263]
[1754321356817,20.042,3649.9,3649.8,2.0263]
[1754321357511,20.9142,3649.9,3649.8,2.0263]
[1754321358513,0.8253,3649.9,3649.8,2.0263]
[1754321358718,20.9102,3650.1,3650.0,0.8181]
[1754321358918,20.9102,3650.1,3650.0,2.0263]
[1754321359116,20.5051,3650.1,3650.0,2.0263]
[1754321359322,20.9102,3650.1,3650.0,2.0263]
[1754321359720,2.0932,3649.9,3649.8,0.54789]
[1754321360021,2.0932,3649.8,3649.7,0.54789]
[1754321360223,2.0932,3649.8,3649.7,1.53039]
[1754321360417,2.0932,3649.8,3649.7,2.57419]
[1754321365221,2.0932,3649.8,3649.7,2.18419]
[1754321367727,2.0932,3649.8,3649.7,1.80429]
[1754321368129,0.8253,3649.3,3649.2,4.8441]
[1754321368331,2.0932,3649.3,3649.2,5.39208]
[1754321368535,1.0932,3649.3,3649.2,5.78208]
[1754321368831,19.9896,3649.6,3649.5,2.57423]
[1754321369232,18.811,3649.6,3649.5,2.57423]
[1754321369638,19.0629,3649.6,3649.5,2.57423]
[1754321370032,19.4586,3649.6,3649.5,2.57423]
[1754321370233,19.7221,3649.6,3649.5,2.57423]
[1754321370432,20.1272,3649.6,3649.5,2.57423]
[1754321370634,20.3947,3649.6,3649.5,2.57423]
[1754321370834,20.5619,3649.6,3649.5,2.57423]
[1754321371331,18.811,3649.6,3649.5,2.57423]
[1754321371537,1.7509,3650.0,3649.9,2.57417]
[1754321371830,0.6826,3650.0,3649.9,2.57417]
[1754321372037,19.3244,3650.0,3649.9,2.57417]
[1754321372247,19.0609,3650.0,3649.9,2.57417]
[1754321372437,19.8873,3650.0,3649.9,2.57417]
[1754321372639,20.2924,3650.0,3649.9,2.57417]
[1754321373533,19.0609,3650.0,3649.9,2.57417]
[1754321374141,19.6238,3650.0,3649.9,2.57417]
[1754321374341,20.2924,3650.0,3649.9,2.57417]
[1754321374540,20.5599,3650.0,3649.9,1.36597]
[1754321375340,20.5599,3650.0,3649.9,2.57417]
[1754321375541,20.2924,3650.0,3649.9,2.57417]
[1754321375742,19.3244,3650.0,3649.9,2.57417]
[1754321376237,20.2924,3650.0,3649.9,2.57417]
[1754321376435,20.2904,3650.0,3649.9,2.57417]
[1754321377043,1.4834,3650.0,3649.9,2.57417]
[1754321378043,0.2519,3650.0,3649.9,2.57417]
[1754321378735,40.433,3650.4,3650.3,2.57411]
[1754321378940,60.07640093,3650.4,3650.3,2.57411]
[1754321379141,21.39430093,3650.4,3650.3,2.57411]
[1754321381250,21.39430093,3650.4,3650.3,2.18411]
[1754321381551,21.39430093,3650.4,3650.3,1.74581]
[1754321382140,0.54781,3650.3,3650.2,0.54782]
[1754321382346,3.10496383,3650.3,3650.2,0.54782]
[1754321382545,1.32904,3650.2,3650.1,0.54783]
[1754321382751,21.06914,3650.2,3650.1,0.54783]
[1754321384048,20.5213,3650.2,3650.1,0.54783]
[1754321385048,20.5213,3650.2,3650.1,0.94283]
[1754321385547,20.5213,3650.2,3650.1,0.5698]
[1754321385749,1.7183,3649.6,3649.5,2.60443]
[1754321389753,18.802,3649.7,3649.5,5.81223]
[1754321389946,1.4524,3650.1,3650.0,2.60436]
[1754321390147,21.35854998,3650.1,3650.0,2.60436]
[1754321390748,1.7183,3649.9,3649.8,0.54788]
[1754321390952,20.65537597,3649.9,3649.8,0.54788]
[1754321391553,21.35753284,3649.9,3649.8,0.54788]
[1754321391755,21.22045687,3649.9,3649.8,0.54788]
[1754321392151,21.35752737,3649.9,3649.8,0.54788]
[1754321392549,0.54789,3649.8,3649.6,0.395]
[1754321392750,0.54789,3649.8,3649.6,0.5698]
[1754321392751,20.5173,3649.7,3649.6,0.5698]
[1754321392952,0.5153,3649.2,3649.1,4.4891]
[1754321393153,0.2569,3648.9,3648.8,0.395]
[1754321393454,1.7183,3648.8,3648.7,5.09175]
[1754321393658,1.7183,3648.8,3648.7,2.60455]
[1754321394155,20.5173,3648.8,3648.7,2.60455]
[1754321394462,2.0425,3648.5,3648.4,0.8294]
[1754321394661,0.3685,3648.5,3648.4,1.3775]
[1754321394864,14.18824276,3648.7,3648.6,1.37747]
[1754321395050,14.90154276,3648.7,3648.6,1.74657]
[1754321395358,1.674,3648.5,3648.4,1.11989]
[1754321395660,1.674,3648.2,3648.1,1.74664]
[1754321395866,20.472,3648.2,3648.1,1.1985]
[1754321396157,20.472,3648.2,3648.1,0.5718]
[1754321396359,20.472,3648.2,3648.1,0.8294]
[1754321396556,14.51754276,3648.1,3648.0,1.69405]
[1754321396861,14.88604276,3648.1,3648.0,1.69405]
[1754321397057,14.88604276,3648.1,3648.0,2.15705]
[1754321397558,0.8262,3647.8,3647.7,3.2078]
[1754321397758,2.0425,3647.8,3647.7,3.9766]
[1754321398258,2.0425,3647.8,3647.7,0.7688]
[1754321398654,0.7709,3647.6,3647.5,0.54823]
[1754321399761,9.36946276,3647.5,3647.4,0.35651454]
[1754321399958,10.14036276,3647.5,3647.4,0.54825]
[1754321400158,9.73796276,3647.5,3647.3,3.2078]
[1754321400456,0.8262,3647.0,3646.9,3.2078]
[1754321400651,2.0425,3647.0,3646.9,3.2078]
[1754321400850,6.53016276,3646.9,3646.8,0.54833]
[1754321401156,6.16166276,3646.9,3646.8,0.54833]
[1754321401557,6.53016276,3646.9,3646.8,0.54833]
[1754321401754,5.61333276,3646.8,3646.6,3.2078]
[1754321401962,5.61333276,3646.8,3646.7,0.54835]
[1754321402860,3.11390276,3646.7,3646.6,3.2078]
[1754321403261,0.92947276,3646.7,3646.6,3.75617]
[1754321403651,1.29797276,3646.7,3646.6,3.75617]
[1754321403857,2.97197276,3646.7,3646.6,3.75617]
[1754321404260,0.3685,3647.1,3646.6,3.37502724]
[1754321404459,2.0425,3647.1,3647.0,0.54831]
[1754321409768,2.0425,3646.7,3646.6,0.54837]
[1754321410967,2.0425,3646.7,3646.6,0.57707]
[1754321412064,1.3134,3646.5,3645.8,4.57902]
[1754321412261,2.1973,3646.0,3645.9,1.56457697]
[1754321412660,2.1973,3646.0,3645.9,1.53587697]
[1754321412869,2.1973,3646.0,3645.9,0.98739697]
[1754321414567,2.1973,3646.0,3645.9,1.01609697]
[1754321415862,4.2322,3646.5,3646.4,0.5771]
[1754321416069,0.4291,3646.5,3646.4,0.5771]
[1754321416262,2.1973,3646.5,3646.4,0.5771]
[1754321416565,1.0244,3646.5,3646.4,0.5771]
[1754321416766,1.0244,3646.5,3646.2,3.2078]
[1754321416767,0.4291,3647.1,3647.0,0.57191]
[1754321417164,0.4291,3647.1,3647.0,0.58671]
[1754321417365,0.8525,3647.4,3647.3,0.57187]
[1754321417671,1.1447,3647.4,3647.3,0.57187]
[1754321417871,1.7364,3647.4,3647.3,0.57187]
[1754321418065,0.8525,3647.4,3647.3,0.57187]
[1754321418263,1.3448,3647.9,3647.8,0.57179]
[1754321418865,2.1973,3647.9,3647.8,0.57179]
[1754321419374,2.1973,3647.9,3647.8,0.54819]
[1754321420170,2.1973,3647.9,3647.8,0.57179]
[1754321422876,0.4291,3647.9,3647.8,0.57179]
[1754321423066,0.4234,3648.6,3648.4,0.5481]
[1754321423376,1.7682,3648.6,3648.5,0.57169]
[1754321423770,2.1973,3648.6,3648.5,0.57169]
[1754321424876,0.8839,3648.2,3648.1,0.57174]
[1754321425078,1.43204,3648.2,3647.9,0.54817]
[1754321425277,4.63984,3648.2,3648.0,0.54815]
[1754321425477,2.1973,3648.1,3648.0,0.54815]
[1754321426079,2.1973,3648.1,3648.0,0.57175]
[1754321426480,2.1973,3648.1,3648.0,0.54815]
[1754321427681,2.1973,3648.1,3648.0,0.57175]
[1754321432877,2.1973,3648.1,3648.0,0.54815]
[1754321433277,2.1973,3648.1,3648.0,0.57175]
[1754321433678,2.1973,3648.1,3648.0,0.54815]
[1754321434881,2.1973,3648.1,3648.0,0.57175]
[1754321435477,5.4051,3648.6,3648.5,0.57168]
[1754321436490,2.1973,3648.6,3648.5,0.57168]
[1754321438279,0.54811,3648.4,3647.9,1.37044]
[1754321438477,2.1973,3648.2,3648.1,0.54813]
[1754321438671,1.3134,3648.1,3647.5,1.37058]
[1754321438875,2.1973,3647.6,3647.5,0.57184]
[1754321439579,0.8525,3647.6,3647.5,0.57184]
[1754321439774,1.7739,3648.0,3647.9,0.57177]
[1754321439983,2.1973,3648.0,3647.9,0.57177]
[1754321440482,2.1973,3648.0,3647.9,0.54817]
[1754321441475,1.8789,3647.7,3647.6,0.54822]
[1754321441782,1.8863,3647.6,3647.5,0.54822]
[1754321441980,2.1705,3647.5,3647.4,0.54824]
[1754321442679,0.4365,3647.5,3647.4,0.55164]
[1754321443077,2.1705,3647.9,3647.8,0.55159]
[1754321444185,0.8636,3647.9,3647.8,0.55159]
[1754321444384,0.4271,3648.4,3648.1,0.0034]
[1754321444686,2.44352198,3648.7,3648.6,0.55146]
[1754321444986,2.1705,3648.7,3648.6,0.55146]
[1754321445579,2.1705,3648.7,3648.6,0.54806]
[1754321445782,5.3783,3648.7,3648.6,0.54806]
[1754321446285,5.51708962,3648.7,3648.6,0.54806]
[1754321446878,2.1705,3648.7,3648.6,0.54806]
[1754321447079,2.1705,3648.7,3648.6,0.55146]
[1754321447289,2.1705,3648.7,3648.6,0.54806]
[1754321450393,1.7192,3648.7,3648.6,0.55146]
[1754321450989,2.1705,3648.7,3648.6,0.55146]
[1754321451189,2.1705,3648.7,3648.6,0.54806]
[1754321451888,2.1705,3648.6,3648.5,0.54808]
[1754321452885,0.4365,3648.6,3648.5,3.76138]
[1754321453086,0.4365,3648.6,3648.5,0.55358]
[1754321454583,0.4365,3648.6,3648.5,0.55148]
[1754321454787,0.8636,3648.6,3648.5,0.55148]
[1754321454985,2.1705,3648.6,3648.5,0.55148]
[1754321456890,2.1705,3648.6,3648.5,0.54808]
[1754321458189,2.1705,3648.6,3648.5,0.55148]
[1754321459200,0.4365,3648.6,3648.5,0.55358]
[1754321459993,1.1434,3648.6,3648.5,0.55148]
[1754321460199,1.7192,3648.6,3648.5,0.55148]
[1754321460498,2.1705,3648.6,3648.5,0.55148]
[1754321460798,1.7192,3648.6,3648.5,0.55148]
[1754321461698,0.4365,3648.6,3648.5,0.55358]
[1754321462204,0.7163,3648.6,3648.5,0.55148]
[1754321462498,2.1705,3648.6,3648.5,0.55148]
[1754321463102,1.7192,3648.6,3648.5,0.55148]
[1754321463606,2.1705,3648.6,3648.5,0.55148]
[1754321465001,1.7192,3648.6,3648.5,3.75928]
[1754321465198,0.8636,3648.6,3648.5,3.75928]
[1754321465402,0.8636,3648.6,3648.5,3.76138]
[1754321465603,0.8636,3648.6,3648.5,3.75928]
[1754321466101,1.4276,3648.6,3648.5,3.75928]
[1754321466303,1.7192,3648.6,3648.5,3.75928]
[1754321466505,2.1705,3648.6,3648.5,3.75928]
[1754321466906,1.7192,3649.3,3649.2,0.54797]
[1754321467512,2.1705,3649.3,3649.2,0.54797]
[1754321468203,2.1705,3649.2,3649.1,0.54799]
[1754321469106,1.40356,3649.4,3649.2,10.37747]
[1754321469304,0.8556,3649.4,3649.2,10.37747]
[1754321469508,3.2078,3649.5,3649.4,0.54795]
[1754321469701,4.0634,3649.5,3649.4,2.72005]
[1754321470103,0.2803,3649.7,3649.6,1.40422]
[1754321470301,0.8777,3649.7,3649.6,2.70082]
[1754321470500,3.2078,3650.0,3649.9,0.54787]
[1754321470708,0.8777,3650.0,3649.9,2.27717]
[1754321470904,0.8777,3650.0,3649.9,1.81537]
[1754321471213,3.2078,3650.1,3650.0,7.4701]
[1754321471509,4.08705735,3650.1,3650.0,9.75965]
[1754321471708,0.87925735,3650.1,3650.0,9.75965]
[1754321471906,0.742,3650.1,3650.0,9.75965]
[1754321472211,0.13725735,3650.3,3650.2,0.54783]
[1754321472408,0.41755735,3650.3,3650.2,0.95903]
[1754321472711,0.2803,3650.3,3650.2,0.4112]
[1754321473211,0.54,3650.3,3650.2,0.4112]
[1754321473411,58.78681,3650.4,3650.3,6.32471]
[1754321473611,58.78681,3650.4,3650.3,6.73591]
[1754321474305,52.4621,3650.4,3650.3,0.95901]
[1754321474611,52.4591,3650.4,3650.3,0.95901]
[1754321476610,33.6811,3650.4,3650.3,1.38261]
[1754321476811,3.2078,3650.5,3650.4,2.1529]
[1754321477013,3.2078,3651.1,3651.0,0.5585]
[1754321477204,3.2078,3651.1,3651.0,2.1529]
[1754321477409,0.54771,3651.0,3650.9,0.54772]
[1754321477711,0.54771,3651.0,3650.9,0.95892]
[1754321477917,0.54771,3651.0,3650.9,0.8348]
[1754321478112,3.2078,3651.1,3650.6,0.95896]
[1754321478416,0.54773,3650.9,3650.8,0.8348]
[1754321478617,3.2078,3651.1,3651.0,0.4112]
[1754321478808,3.2078,3651.1,3651.0,2.1529]
[1754321479008,21.9838,3651.1,3651.0,2.1529]
[1754321479214,21.9838,3651.1,3650.8,0.4112]
[1754321479520,0.54771,3651.0,3650.8,0.4112]
[1754321479712,0.54774,3650.8,3650.7,0.83224]
[1754321479918,0.54774,3650.8,3650.7,0.8563]
[1754321480313,0.54774,3650.8,3650.7,1.6911]
[1754321480516,0.54774,3650.8,3650.7,2.1529]
[1754321480714,0.5478,3650.4,3650.3,0.8348]
[1754321481115,18.774,3650.5,3650.3,1.66711]
[1754321481315,19.32179,3650.5,3650.4,2.1529]
[1754321481613,18.774,3650.5,3650.4,2.1529]
[1754321482017,18.774,3650.5,3650.4,1.6911]
[1754321482217,0.54782,3650.3,3650.2,0.4112]
[1754321482416,0.54781,3650.4,3650.2,2.70072]
[1754321482721,0.54781,3650.4,3650.3,2.1529]
[1754321483022,19.32079,3650.5,3650.3,2.1529]
[1754321483218,19.32079,3650.5,3650.4,2.1529]
[1754321483920,19.32079,3650.5,3650.4,1.6911]
[1754321484117,0.54785,3650.1,3650.0,2.1529]
[1754321484318,19.32085,3650.1,3650.0,0.4112]
[1754321484519,19.32085,3650.1,3650.0,1.1193]
[1754321484721,19.32085,3650.1,3650.0,2.1529]
[1754321484920,18.773,3650.1,3650.0,2.1529]
[1754321485722,3.2078,3650.2,3650.1,2.70074]
[1754321485918,18.772,3650.3,3650.2,2.70073]
[1754321486725,18.7812,3650.3,3650.2,2.70073]
[1754321487023,18.7812,3650.3,3650.2,1.6911]
[1754321487527,0.0092,3649.9,3649.8,1.3181]
[1754321487823,3.217,3649.9,3649.8,0.8563]
[1754321488022,0.0092,3649.7,3649.6,1.86601]
[1754321488324,3.2078,3649.9,3649.4,1.86604]
[1754321488325,0.0092,3649.5,3649.4,1.86604]
[1754321488722,0.0092,3649.5,3649.4,2.70084]
[1754321489023,0.0092,3649.5,3648.3,2.72031885]
[1754321489024,0.55725,3648.7,3648.6,1.6911]
[1754321489227,0.0092,3648.7,3648.6,2.1529]
[1754321489716,0.0092,3648.7,3648.6,1.7293]
[1754321489916,3.217,3648.9,3648.8,0.8563]
[1754321490116,3.76502,3648.9,3648.8,2.1529]
[1754321490521,3.76502,3648.9,3648.8,1.6911]
[1754321490924,3.44712919,3648.9,3648.8,1.6911]
[1754321491429,2.89910919,3648.9,3648.8,2.1529]
[1754321492117,2.89910919,3648.9,3648.8,1.6911]
[1754321493024,2.89910919,3648.9,3648.3,2.1529]
[1754321493025,0.0092,3648.4,3648.3,2.1529]
[1754321493227,0.0092,3648.1,3648.0,1.6911]
[1754321493422,3.217,3648.1,3648.0,1.6911]
[1754321493625,3.217,3648.1,3648.0,2.1529]
[1754321495126,3.217,3648.5,3648.4,2.701]
[1754321495327,21.991,3648.5,3648.4,2.1529]
[1754321495830,3.2078,3648.5,3648.4,2.1529]
[1754321496029,18.774,3648.5,3648.4,2.1529]
[1754321496425,3.217,3648.9,3648.8,0.274]
[1754321496629,3.217,3648.9,3648.8,2.1529]
[1754321496830,21.99,3648.9,3648.8,1.6911]
[1754321497025,21.99,3648.9,3648.8,0.4112]
[1754321497225,21.9958,3648.9,3648.8,0.4112]
[1754321497935,21.99,3648.9,3648.8,0.8348]
[1754321498337,21.99,3648.9,3648.8,1.6911]
[1754321498534,21.99,3648.9,3648.8,2.1529]
[1754321499033,21.99,3648.9,3648.8,1.6911]
[1754321500139,21.99,3648.9,3648.8,2.1529]
[1754321500541,21.99,3648.9,3648.8,1.6911]
[1754321500842,21.99,3648.9,3648.8,0.4112]
[1754321501043,0.54808,3648.6,3648.5,0.54808]
[1754321501235,19.32308,3648.6,3648.4,0.54809]
[1754321501437,3.2078,3648.5,3648.1,0.4765]
[1754321501631,0.54821,3647.7,3647.6,0.5961]
[1754321501838,18.775,3647.7,3647.6,0.9048]
[1754321502038,18.775,3647.7,3647.6,1.8323]
[1754321502338,18.775,3647.7,3647.6,2.2905]
[1754321502542,18.775,3647.7,3647.6,1.8323]
[1754321502943,18.775,3647.7,3647.6,2.2905]
[1754321504337,3.2078,3647.9,3647.8,2.2905]
[1754321504543,3.2078,3648.4,3648.3,2.2905]
[1754321504742,21.9838,3648.4,3648.3,2.2905]
[1754321506538,21.9838,3648.4,3648.3,1.8323]
[1754321506734,21.9838,3648.4,3648.3,0.4765]
[1754321507543,21.9838,3648.4,3648.3,2.2905]
[1754321508145,3.2078,3648.4,3648.3,2.2905]
[1754321508540,21.9838,3648.4,3648.3,2.2905]
[1754321509245,18.776,3648.4,3648.3,2.2905]
[1754321509643,21.9838,3648.4,3648.3,0.4765]
[1754321510044,3.2078,3648.4,3648.3,0.4765]
[1754321510244,21.9838,3648.4,3648.3,0.4765]
[1754321510442,21.9838,3648.4,3648.3,1.2362]
[1754321510642,21.9838,3648.4,3648.3,1.5271]
[1754321511346,21.9838,3648.4,3648.3,1.8323]
[1754321511553,21.9838,3648.4,3648.3,2.2905]
[1754321512254,21.9838,3648.4,3648.3,1.8323]
[1754321512447,21.9838,3648.4,3648.3,1.5271]
[1754321512647,21.9838,3648.4,3648.3,0.9275]
[1754321513353,21.9838,3648.4,3648.3,0.4765]
[1754321514148,0.54814,3648.1,3648.0,0.9275]
[1754321514349,19.32414,3648.1,3648.0,0.9275]
[1754321515143,19.32414,3648.1,3647.1,0.4582]
[1754321515144,1.37044,3647.9,3647.1,0.4582]
[1754321515349,3.2078,3647.7,3647.3,1.63866]
[1754321515542,0.54823,3647.5,3647.4,1.363]
[1754321516147,0.54823,3647.5,3647.4,2.2905]
[1754321516548,0.54823,3647.5,3647.4,1.8323]
[1754321517649,0.54823,3647.5,3647.4,1.2362]
[1754321517849,0.54823,3647.5,3647.4,0.4765]
[1754321518354,1.37062,3647.5,3646.8,0.54834]
[1754321518552,3.75609,3647.1,3647.0,1.3558]
[1754321518747,3.75609,3647.1,3647.0,1.8323]
[1754321518748,22.53209,3647.1,3647.0,1.8323]
[1754321519060,22.53209,3647.1,3647.0,1.2362]
[1754321519350,22.53209,3647.1,3647.0,0.9275]
[1754321520360,22.53209,3647.1,3647.0,1.5271]
[1754321520658,22.53209,3647.1,3647.0,2.2905]
[1754321520848,21.9848,3647.1,3647.0,2.2905]
[1754321521254,3.2078,3647.1,3647.0,2.2905]
[1754321521450,0.98084571,3648.3,3646.7,3.2078]
[1754321521651,18.776,3648.2,3648.1,2.83864]
[1754321521854,19.62326751,3648.2,3648.1,2.2905]
[1754321522059,18.776,3648.2,3648.1,2.2905]
[1754321522649,0.54813,3648.2,3648.0,0.54815]
[1754321522956,0.54814,3648.1,3648.0,1.3558]
[1754321523363,0.54814,3648.1,3648.0,0.4765]
[1754321523663,0.54823,3647.6,3647.5,0.54823]
[1754321523854,21.9858,3647.6,3647.5,1.814]
[1754321524055,21.9858,3647.6,3647.1,0.4582]
[1754321524359,0.54826,3647.4,3647.3,0.4765]
[1754321524559,3.2078,3647.4,3647.3,0.7852]
[1754321524751,3.2078,3647.4,3647.3,2.2905]
[1754321525963,0.5484,3646.5,3646.4,0.9048]
[1754321526157,19.3264,3646.5,3646.4,2.2905]
[1754321526358,19.3264,3646.5,3646.4,1.0904]
[1754321526761,19.3264,3646.5,3646.4,1.5414]
[1754321526958,19.3264,3646.5,3646.4,0.4765]
[1754321527254,19.3264,3646.5,3646.4,1.8323]
[1754321527664,19.3264,3646.5,3646.4,2.2905]
[1754321527850,18.778,3646.5,3646.4,2.2905]
[1754321529064,18.778,3646.5,3646.4,1.5271]
[1754321529767,0.5484,3646.4,3646.2,0.9275]
[1754321529966,18.779,3646.3,3646.2,0.9275]
[1754321530365,18.779,3646.3,3646.2,1.8323]
[1754321530561,18.779,3646.3,3646.2,2.2716]
[1754321531863,19.32743,3646.3,3646.2,0.7563]
[1754321532068,19.32743,3646.3,3646.2,1.7846]
[1754321532458,0.54846,3646.0,3645.9,2.30799697]
[1754321532664,22.53726,3646.0,3645.9,3.21129697]
[1754321532967,1.37091,3646.7,3646.3,2.2239]
[1754321532968,3.75621,3646.4,3646.3,2.2239]
[1754321533166,23.24528984,3646.4,3646.3,2.2239]
[1754321533371,3.2078,3646.4,3646.3,2.2239]
[1754321533569,21.9888,3646.4,3646.3,2.2239]
[1754321534665,21.9898,3646.4,3646.3,2.2239]
[1754321536464,18.782,3646.4,3646.3,2.2239]
[1754321536965,3.2078,3646.8,3646.7,0.84256]
[1754321537166,3.2078,3647.2,3647.1,1.42739]
[1754321537473,22.69767845,3647.2,3647.1,2.77219]
[1754321537673,21.9898,3647.2,3647.1,2.77219]
[1754321539173,21.9898,3647.2,3647.1,2.2239]
[1754321539474,3.2078,3647.2,3647.1,2.2239]
[1754321539772,21.9898,3647.2,3647.1,2.2239]
[1754321541371,21.9888,3647.2,3647.1,2.2239]
[1754321541873,3.2078,3647.6,3647.5,2.77214]
[1754321542068,21.9888,3647.6,3647.5,2.77214]
[1754321542369,18.781,3647.8,3647.7,0.54821]
[1754321542569,18.781,3647.8,3647.7,2.77211]
[1754321543274,3.2078,3648.1,3648.0,0.8791]
[1754321543569,21.9888,3648.1,3648.0,2.2239]
[1754321544165,3.2078,3648.5,3648.4,1.7599]
[1754321544373,21.9878,3648.5,3648.4,2.2239]
[1754321546174,21.9878,3648.5,3648.4,1.7846]
[1754321546374,21.9878,3648.5,3648.4,2.2239]
[1754321548081,21.9878,3648.5,3648.4,0.464]
[1754321548270,21.9878,3648.5,3648.4,2.2239]
[1754321548777,3.2078,3648.5,3648.4,2.2239]
[1754321548977,21.9838,3648.5,3648.4,2.2239]
[1754321549676,3.2078,3648.9,3648.8,2.77194]
[1754321549973,18.776,3649.0,3648.8,2.77194]
[1754321550280,3.2078,3649.3,3649.2,2.77188]
[1754321550775,0.54791,3649.7,3649.4,1.36988]
[1754321550776,3.2078,3649.7,3649.4,1.36988]
[1754321550981,21.9838,3649.7,3649.6,2.77182]
[1754321551179,18.776,3649.9,3649.8,1.42699]
[1754321551370,3.2078,3650.1,3650.0,2.77176]
[1754321552073,3.9121,3650.1,3650.0,2.77176]
[1754321552378,3.2078,3650.1,3650.0,2.77176]
[1754321552575,3.9121,3650.1,3650.0,2.77176]
[1754321552778,3.9121,3650.1,3650.0,2.2239]
[1754321553479,3.2078,3650.1,3650.0,2.2239]
[1754321554276,3.6072,3650.1,3650.0,2.2239]
[1754321554470,3.2078,3650.1,3649.4,0.54795]
[1754321554673,0.3994,3649.9,3649.5,0.8791]
[1754321554872,0.3994,3649.9,3649.8,1.7824]
[1754321555077,0.3994,3649.9,3649.8,2.2239]
[1754321555477,0.7043,3649.9,3649.8,2.2239]
[1754321555874,0.7043,3649.9,3649.8,1.7846]
[1754321556076,0.7043,3649.9,3649.8,2.2239]
[1754321556377,0.7043,3649.9,3649.8,1.492]
[1754321556781,0.7043,3649.9,3649.8,1.7846]
[1754321557083,0.7043,3649.9,3649.8,2.2239]
[1754321558080,0.7043,3649.9,3649.8,1.7846]
[1754321558483,0.7043,3649.9,3649.8,2.2239]
[1754321559885,0.7043,3649.9,3649.8,1.7846]
[1754321560184,19.4733,3649.9,3649.8,1.1978]
[1754321560387,19.4733,3649.9,3649.8,1.492]
[1754321560686,19.4733,3649.9,3649.8,1.4874]
[1754321561780,19.4733,3649.9,3649.8,2.2451]
[1754321562985,19.4733,3649.9,3649.8,0.464]
[1754321563876,0.2923,3649.3,3649.2,1.58366]
[1754321564081,18.766,3649.3,3649.2,2.77436]
[1754321564477,18.766,3649.3,3649.0,3.2078]
[1754321564478,1.23928,3649.9,3649.8,2.2264]
[1754321564682,20.00528,3649.9,3649.8,2.2264]
[1754321564982,19.4574,3649.9,3649.8,2.2264]
[1754321565181,21.9738,3650.1,3650.0,2.2264]
[1754321565582,0.54772,3651.0,3650.7,0.54774]
[1754321565783,0.6914,3650.8,3650.7,2.2264]
[1754321566089,18.766,3650.9,3650.8,2.77414]
[1754321566285,3.8992,3651.1,3651.0,2.2264]
[1754321566484,22.6652,3651.1,3651.0,2.2264]
[1754321566682,3.2078,3651.5,3651.4,2.77405]
[1754321566982,0.6914,3651.8,3651.7,2.2264]
[1754321567178,3.5001,3651.8,3651.7,1.7613]